[Event "29th Bosnjaci Open 2025"]
[Site "Bosnjaci"]
[Date "2025.01.06"]
[Round "6.1"]
[White "Saric, Ante"]
[Black "Zaja, Ivan"]
[Result "1/2-1/2"]
[ECO "E19"]
[WhiteElo "2483"]
[BlackElo "2418"]
[Annotator "TA"]
[PlyCount "54"]
[EventDate "2025.01.04"]
[EventType "swiss"]
[EventCountry "CRO"]
[SourceTitle "playchess.com"]
[Source "ChessBase"]
[SourceQuality "1"]
[TimeControl "5400+30"]

{[%evp 24,54,20,23,21,23,29,24,17,14,30,23,25,22,32,10,9,0,16,0,0,0,0,0,0,0,0,0,0,0,0,0,0]} 1. Nf3 {[%emt 0:00:02]} Nf6 {[%emt 0:00:15]} 2. c4 {[%emt 0:00:07]} b6 {[%emt 0:00:29]} 3. g3 {[%emt 0:00:05]} Bb7 {[%emt 0:00:04]} 4. Bg2 {[%emt 0:00:06]} e6 {[%emt 0:00:03]} 5. O-O {[%emt 0:00:08]} Be7 {[%emt 0:00:04]} 6. d4 {[%emt 0:00:22]} O-O {[%emt 0:00:04]} 7. Nc3 {[%emt 0:00:04]} Ne4 {[%emt 0:00:07]} 8. Qc2 {[%emt 0:00:03]} Nxc3 {[%emt 0:00:13]} 9. Qxc3 {[%emt 0:00:05]} c5 {[%emt 0:00:07]} 10. Rd1 {[%emt 0:00:16]} d6 {[%emt 0:00:13]} 11. b3 {[%emt 0:00:19]} Bf6 {[%emt 0:00:34]} 12. Bb2 {[%emt 0:00:07]} Qe7 {[%emt 0:01:06]} 13. Qc2 {[%emt 0:00:31]} Nc6 {[%emt 0:00:19]} 14. e3 {[%emt 0:00:22]} Nb4 {[%emt 0:01:50]} 15. Qe2 {[%emt 0:00:46]} Be4 {[%emt 0:00:42]} 16. Ne1 {[%emt 0:00:45][%cal Bf3e1,Be1g2,Bg2e3][%mdl 32]} Bxg2 {[%emt 0:06:08]} 17. Nxg2 {[%emt 0:00:35]} cxd4 {[%emt 0:01:13]} 18. exd4 {[%emt 0:14:51]} d5 {[%emt 0:01:49]} 19. Ne3 {[%emt 0:03:40]} Rfd8 {[%emt 0:06:40]} 20. Ng4 {[%emt 0:14:02]} Rac8 {[%emt 0:08:20]} 21. Ba3 {[%emt 0:07:41]} a5 {[%emt 0:01:07]} 22. Rac1 {[%emt 0:02:17]} h5 {[%emt 0:17:23]} 23. Nxf6+ {[%emt 0:08:40]} Qxf6 {[%emt 0:00:17]} 24. Bxb4 {[%emt 0:03:48]} axb4 {[%emt 0:00:06]} 25. Qxh5 {[%emt 0:04:24]} dxc4 {[%emt 0:02:22]} 26. bxc4 {[%emt 0:03:56]} Rxd4 {[%emt 0:00:14]} 27. Qb5 {[%emt 0:01:26][%csl LRb4,LRb6]} Rxd1+ {[%emt 0:05:12]} 1/2-1/2

[Event "29th Bosnjaci Open 2025"]
[Site "Bosnjaci"]
[Date "2025.01.06"]
[Round "6.2"]
[White "Pap, Misa"]
[Black "Kovacevic, Blazimir"]
[Result "1-0"]
[ECO "B01"]
[WhiteElo "2436"]
[BlackElo "2379"]
[Annotator "TA"]
[PlyCount "121"]
[EventDate "2025.01.04"]
[EventType "swiss"]
[EventCountry "CRO"]
[SourceTitle "playchess.com"]
[Source "ChessBase"]
[SourceQuality "1"]
[TimeControl "5400+30"]

{[%evp 32,121,20,19,22,23,18,20,21,17,16,16,17,18,14,23,27,20,71,70,82,83,66,82,120,117,141,136,119,143,141,137,141,147,132,152,142,146,151,106,150,152,133,8,8,8,8,0,0,0,0,0,0,0,15,0,70,68,225,225,320,314,343,10,8,0,336,343,343,343,343,343,335,335,29972,29974,29972,29975,29974,29977,29977,29978,29977,29978,29978,29979,29979,29978,29978,29974,29974,29973]} 1. e4 {[%emt 0:00:10]} d5 {[%emt 0:00:09]} 2. exd5 {[%emt 0:00:28]} Qxd5 {[%emt 0:00:05]} 3. Nc3 {[%emt 0:00:15]} Qd6 {[%emt 0:00:07]} 4. d4 {[%emt 0:00:45]} Nf6 {[%emt 0:00:09]} 5. Nf3 {[%emt 0:00:35]} c6 {[%emt 0:00:17]} 6. Ne5 {[%emt 0:01:06]} Nbd7 {[%emt 0:00:18] B01: Scandinavian Defence.} 7. Nc4 {[%emt 0:00:40]} Qc7 {[%emt 0:00:08]} 8. Qf3 {[%emt 0:01:17]} Nb6 {[%emt 0:00:30]} 9. Bf4 {[%emt 0:00:16]} Qd8 {[%emt 0:00:22]} 10. Be5 {[%emt 0:15:38]} Be6 {[%emt 0:00:37]} 11. Ne3 {[%emt 0:00:47]} g6 {[%emt 0:01:32]} 12. d5 {[%emt 0:26:35]} Nbxd5 {[%emt 0:06:21]} 13. Nexd5 {[%emt 0:02:27]} Bxd5 {[%emt 0:00:19]} 14. Nxd5 {[%emt 0:00:13]} Qxd5 {[%emt 0:00:06]} 15. Qxd5 {[%emt 0:00:11]} cxd5 {[%emt 0:00:06]} 16. Bb5+ {[%emt 0:00:11]} Kd8 {[%emt 0:00:06]} 17. Bxf6 {[%emt 0:02:40]} exf6 {[%emt 0:00:07]} 18. O-O-O {[%emt 0:01:13]} Kc7 {[%emt 0:04:14]} 19. Rxd5 {[%emt 0:02:18]} Bd6 $146 {[%emt 0:02:13]} ({Predecessor:} 19... Bh6+ 20. Kb1 Rad8 21. Rhd1 Rxd5 22. Rxd5 a6 23. Bf1 {½-½ Bromberger,S (2479)-Stocek,J (2555) BL2-Ost 2223 2022 (10.1)}) 20. Rhd1 {[%emt 0:11:22]} Rad8 {[%emt 0:00:23]} 21. g3 {[%emt 0:05:30]} a6 {[%emt 0:21:36]} 22. Ba4 {[%emt 0:00:27]} f5 {[%emt 0:04:23]} 23. a3 {[%emt 0:03:43]} b6 {[%emt 0:03:38]} 24. b4 {[%emt 0:00:22]} a5 {[%emt 0:03:46]} (24... f4 $11 {remains equal.}) 25. c3 $16 {[%emt 0:03:17]} (25. bxa5 Bxa3+ 26. Kb1 bxa5 $11) 25... f4 {[%emt 0:00:51]} 26. Kc2 {[%emt 0:02:10]} axb4 {[%emt 0:00:26]} 27. axb4 {[%emt 0:00:10]} f6 {[%emt 0:04:31]} 28. R5d4 $1 {[%emt 0:06:00]} fxg3 {[%emt 0:07:46]} 29. hxg3 {[%emt 0:00:19]} h5 {[%emt 0:08:29]} 30. Rc4+ {[%emt 0:04:52]} Kb8 {[%emt 0:00:06]} 31. Bc6 $1 {[%emt 0:04:15]} Rh7 {[%emt 0:01:11]} 32. Rcd4 {[%emt 0:00:50]} Kc7 {[%emt 0:00:15]} 33. Be4 {[%emt 0:00:22]} f5 {[%emt 0:06:50]} 34. Ra1 {[%emt 0:01:50]} Rdd7 {[%emt 0:00:28]} (34... fxe4 $2 35. Ra7+ Kc6 36. Rxh7 $18) 35. Bf3 {[%emt 0:02:11]} Be5 {[%emt 0:02:51]} 36. Rc4+ {[%emt 0:00:11]} Kd8 {[%emt 0:00:05]} 37. Rc6 {[%emt 0:00:33]} (37. Bc6 $16 Ra7 38. Re1 Ra2+ 39. Kb1) 37... Rc7 $11 {[%emt 0:00:16]} 38. Ra8+ {[%emt 0:00:57]} (38. Rxg6 $2 Rxc3+ 39. Kd1 Rd7+ (39... Rxf3 40. Ra8+ Kd7 41. Rxb6 $19) 40. Ke1 Rxf3 $19) 38... Ke7 {[%emt 0:01:23]} 39. b5 {[%emt 0:00:18]} h4 {[%emt 0:03:17]} 40. gxh4 {[%emt 0:00:01]} (40. Rxb6 hxg3 (40... Rxc3+ 41. Kd1 $11) 41. fxg3 Rxc3+ 42. Kd1 Rh2 (42... Rxf3 $2 43. Ra7+ Kf8 44. Rxh7 $18) (42... Bxg3 43. Rxg6 Bc7 44. Ra7 $14) 43. Ra7+ Ke8) 40... Rxh4 {[%emt 0:00:33]} 41. Bd5 {[%emt 0:00:00]} (41. Rxg6 $2 {loses.} Rxc3+ 42. Kd2 Rxf3 $19) 41... Rxc6 {[%emt 0:11:32]} 42. bxc6 {[%emt 0:00:04]} Rh2 {[%emt 0:00:05]} 43. Kb3 {[%emt 0:01:49]} Rxf2 {[%emt 0:00:15]} ({Black should play} 43... Kd6 $11 44. c4 b5 (44... Rxf2 45. Ra7 $14)) 44. Ra7+ $14 {[%emt 0:00:01]} Kd8 $2 {[%emt 0:00:07]} (44... Kf6 $1 $14) 45. Rd7+ $18 {[%emt 0:00:24]} Kc8 {[%emt 0:00:13]} (45... Ke8 {was necessary.} 46. Bf7+ Kf8) 46. Be6 $18 {[%emt 0:00:15]} Rf4 {[%emt 0:04:16]} 47. Rh7+ $2 {[%emt 0:01:15]} (47. Rd5+ $18 Kc7 48. Rxe5 Kxc6 49. Bf7) 47... Kd8 $11 {[%emt 0:00:16]} 48. Rd7+ $2 {[%emt 0:00:13][%mdl 8192]} (48. Bc4 $11 Rf3 49. Kb4 (49. Rd7+ Kc8 $11)) 48... Kc8 $18 {[%emt 0:00:52]} 49. Rd5+ {[%emt 0:00:34]} Kc7 {[%emt 0:00:04]} 50. Rxe5 {[%emt 0:00:05]} Kxc6 {[%emt 0:00:02]} 51. Bf7 {[%emt 0:00:22]} g5 {[%emt 0:00:44] [#]} 52. Bg6 $1 {[%emt 0:00:15]} g4 $2 {[%emt 0:02:39]} (52... Kd6 $18 53. Rxf5 Rg4 54. Rf6+ Kc5) 53. Rxf5 {[%emt 0:00:10]} Rxf5 {[%emt 0:00:04]} 54. Bxf5 {[%emt 0:00:04]} g3 {[%emt 0:00:03] [#]} 55. Kc4 $1 {[%emt 0:01:08]} Kd6 {[%emt 0:00:48]} 56. Be4 {[%emt 0:00:17]} Ke5 {[%emt 0:00:04]} 57. Bg2 {[%emt 0:00:06]} Kf4 {[%emt 0:00:06]} 58. Kd4 {[%emt 0:00:21]} Kf5 {[%emt 0:00:50]} 59. Ke3 {[%emt 0:01:36]} Ke5 {[%emt 0:00:05]} 60. Bf1 {[%emt 0:00:30]} Kd5 {[%emt 0:00:40]} 61. Bb5 {[%emt 0:01:37]} 1-0

[Event "29th Bosnjaci Open 2025"]
[Site "Bosnjaci"]
[Date "2025.01.06"]
[Round "6.3"]
[White "Fercec, Nenad"]
[Black "Hadzovic, Amir"]
[Result "1/2-1/2"]
[ECO "C71"]
[WhiteElo "2382"]
[BlackElo "2316"]
[Annotator "RC"]
[PlyCount "55"]
[EventDate "2025.01.04"]
[EventType "swiss"]
[EventCountry "CRO"]
[SourceTitle "playchess.com"]
[Source "ChessBase"]
[SourceQuality "1"]
[TimeControl "5400+30"]

1. e4 {[%emt 0:00:06]} e5 {[%emt 0:02:04]} 2. Nf3 {[%emt 0:00:14]} Nc6 {[%emt 0:00:06]} 3. Bb5 {[%emt 0:00:09]} a6 {[%emt 0:00:09]} 4. Ba4 {[%emt 0:00:15]} d6 {[%emt 0:00:06]} 5. c4 {[%emt 0:00:17]} Bg4 {[%emt 0:00:09]} 6. h3 {[%emt 0:00:34]} Bxf3 {[%emt 0:00:05]} 7. Bxc6+ {[%emt 0:01:43]} bxc6 {[%emt 0:00:03]} 8. Qxf3 {[%emt 0:00:07]} Nf6 {[%emt 0:00:16]} 9. Nc3 {[%emt 0:01:52]} Nd7 {[%emt 0:00:14]} 10. d3 {[%emt 0:01:26]} Nc5 {[%emt 0:00:10]} 11. O-O {[%emt 0:01:06]} Ne6 {[%emt 0:00:06]} 12. Ne2 {[%emt 0:00:50]} g6 {[%emt 0:01:11]} 13. Qg3 {[%emt 0:00:46]} Bg7 {[%emt 0:00:34]} 14. Rb1 {[%emt 0:00:11]} O-O {[%emt 0:02:40]} 15. f4 {[%emt 0:01:00]} exf4 {[%emt 0:00:12]} 16. Nxf4 {[%emt 0:00:09]} Be5 {[%emt 0:06:16]} 17. Qg4 {[%emt 0:00:46]} Nd4 {[%emt 0:09:18]} 18. Be3 {[%emt 0:05:32]} a5 {[%emt 0:06:58]} 19. Kh1 {[%emt 0:21:16]} Qe7 {[%emt 0:05:28]} 20. Qd1 {[%emt 0:00:50]} Qh4 {[%emt 0:02:37]} 21. Ne2 {[%emt 0:01:17]} Nxe2 {[%emt 0:02:26]} 22. Qxe2 {[%emt 0:00:15]} c5 {[%emt 0:00:36]} 23. Bf2 {[%emt 0:04:00]} Qg5 {[%emt 0:01:08]} 24. Qf3 {[%emt 0:01:31]} a4 {[%emt 0:01:30]} 25. Be3 {[%emt 0:08:40]} Qh4 {[%emt 0:02:35]} 26. Bf2 {[%emt 0:00:48]} Qg5 {[%emt 0:01:01]} 27. Be3 {[%emt 0:00:06]} Qh4 {[%emt 0:00:04]} 28. Bf2 {[%emt 0:01:26]} 1/2-1/2

[Event "29th Bosnjaci Open 2025"]
[Site "Bosnjaci"]
[Date "2025.01.06"]
[Round "6.4"]
[White "Gal, Andrej"]
[Black "Djuric, Leon"]
[Result "1-0"]
[ECO "D35"]
[WhiteElo "2256"]
[BlackElo "2145"]
[Annotator "TA"]
[PlyCount "119"]
[EventDate "2025.01.04"]
[EventType "swiss"]
[EventCountry "CRO"]
[SourceTitle "playchess.com"]
[Source "ChessBase"]
[SourceQuality "1"]
[TimeControl "5400+30"]

{[%evp 21,119,14,34,29,35,25,31,20,46,21,57,33,32,23,29,41,41,35,37,36,37,32,152,-18,-14,-12,-20,-18,-12,-27,0,0,12,8,11,0,52,47,101,79,251,254,245,128,265,270,269,259,275,269,278,275,268,268,268,256,249,241,234,220,205,114,181,105,218,172,172,172,596,576,521,481,516,216,452,287,652,652,595,495,471,403,1160,302,302,285,282,270,29985,29986,29987,29988,29990,29964,4614,0,29990,29989,29989,29977]} 1. d4 {[%emt 0:00:01]} d5 {[%emt 0:00:05]} 2. c4 {[%emt 0:00:06]} e6 {[%emt 0:00:05]} 3. Nf3 {[%emt 0:00:08]} a6 {[%emt 0:00:04]} 4. cxd5 {[%emt 0:05:16]} exd5 {[%emt 0:00:32]} 5. Nc3 {[%emt 0:00:17]} Nf6 {[%emt 0:00:22]} 6. Bg5 {[%emt 0:01:32]} Be7 {[%emt 0:00:37]} 7. e3 {[%emt 0:00:33]} O-O {[%emt 0:03:14]} 8. Bd3 {[%emt 0:02:30]} Be6 {[%emt 0:06:06]} 9. O-O {[%emt 0:00:40]} Nbd7 {[%emt 0:00:10]} 10. Qc2 {[%emt 0:04:40]} h6 {[%emt 0:01:20]} 11. Bh4 {[%emt 0:01:27]} c5 {[%emt 0:05:05]} 12. dxc5 {[%emt 0:04:06]} Nxc5 {[%emt 0:00:27]} 13. Nd4 {[%emt 0:05:00]} Rc8 {[%emt 0:12:52]} 14. Rac1 {[%emt 0:05:35]} Qb6 {[%emt 0:29:51]} 15. Rfd1 {[%emt 0:13:39][%cal Od3h7]} Rfd8 {[%emt 0:03:10]} 16. Qb1 {[%emt 0:05:21]} (16. Bf5 {is more complex.} Nce4 17. Nxe6 fxe6 18. Qb3) 16... Nxd3 {[%emt 0:04:03]} 17. Rxd3 {[%emt 0:01:09]} g5 {[%emt 0:01:37]} 18. Bg3 {[%emt 0:01:22]} Ne4 {[%emt 0:00:41]} 19. Nxe4 {[%emt 0:04:24]} dxe4 {[%emt 0:05:15]} 20. Rdc3 {[%emt 0:02:19]} Rxc3 {[%emt 0:02:20]} 21. Rxc3 {[%emt 0:00:09][%cal Og3c7]} Bc5 {[%emt 0:01:04]} (21... Qb4 $14) 22. Nb3 $2 {[%emt 0:13:51]} (22. Qxe4 $2 Qxb2 23. Qc2 Qxc2 (23... Qxa2 24. Qxa2 Bxa2 25. Rxc5 $18) 24. Rxc2 Bxd4 25. exd4 Rxd4 $19) (22. Nxe6 $16 Qxb2 23. Qf1 (23. Qc1 $2 Qxc3 24. Qb1 Qd3 $19) 23... Qxc3 24. Nxd8) 22... Bxb3 $11 {[%emt 0:06:13]} 23. Rxb3 {[%emt 0:00:27]} Qc6 {[%emt 0:00:14]} 24. h3 {[%emt 0:04:02]} Qd5 {[%emt 0:01:10]} 25. Kh2 {[%emt 0:01:48]} Bd6 {[%emt 0:01:47]} 26. Qc2 {[%emt 0:02:28]} Bxg3+ {[%emt 0:00:23]} 27. fxg3 {[%emt 0:00:01][%mdl 4096] Endgame KQR-KQR} b5 {[%emt 0:09:19]} 28. Ra3 {[%emt 0:02:42]} Qb7 {[%emt 0:00:20]} (28... Qe6 $11) 29. Rc3 $1 $14 {[%emt 0:01:14]} Qe7 {[%emt 0:02:26]} ({Black should try} 29... Qd5 $14) 30. Rc6 $16 {[%emt 0:01:05][%csl LRa6,LRh6]} Kh7 $2 {[%emt 0:00:43]} (30... h5 $16) 31. Rxa6 $18 {[%emt 0:01:11]} h5 {[%emt 0:01:11]} 32. Qf2 {[%emt 0:06:34]} ({White should try} 32. Qe2 $18) 32... h4 {[%emt 0:00:40]} (32... Rd5 $16 33. b3 (33. Qe2 h4 $14) 33... Kg7) 33. gxh4 {[%emt 0:00:40]} Qc7+ {[%emt 0:00:49]} 34. Qg3 {[%emt 0:00:28]} Qxg3+ {[%emt 0:00:22]} 35. Kxg3 {[%emt 0:00:01]} gxh4+ {[%emt 0:00:19]} 36. Kxh4 {[%emt 0:00:33] KR-KR. White is two pawns up.} Rd2 {[%emt 0:00:07]} 37. g4 {[%emt 0:00:24]} Rxb2 {[%emt 0:00:08]} 38. Kg5 {[%emt 0:00:35]} Rf2 {[%emt 0:00:14]} 39. h4 {[%emt 0:01:43]} Rf3 {[%emt 0:00:27]} 40. Ra3 $1 {[%emt 0:03:14]} Kg7 {[%emt 0:00:46]} 41. Kh5 {[%emt 0:01:46]} (41. Rb3 $18) 41... Rf6 {[%emt 0:01:26] [#]} (41... Rf2 $16 42. Kg5 Rf1) 42. g5 {[%emt 0:00:45]} (42. Rb3 $1 $18) 42... Rd6 {[%emt 0:00:11]} (42... Rf3 $16 {keeps fighting.}) 43. Kg4 {[%emt 0:01:00]} Rd2 {[%emt 0:01:48]} 44. h5 {[%emt 0:01:33]} Rf2 $2 {[%emt 0:00:01]} (44... Rg2+ {is a better chance.} 45. Kf4 Rf2+ 46. Kg3 (46. Kxe4 Rh2 $16) 46... Re2) 45. Ra7 {[%emt 0:01:00] Black must now prevent g6.} Kg8 {[%emt 0:00:28]} 46. Ra8+ {[%emt 0:01:55]} Kg7 {[%emt 0:00:09]} 47. Ra3 {[%emt 0:01:55]} (47. h6+ $142 Kh7 48. a3) 47... Rf3 $2 {[%emt 0:00:22]} (47... Rg2+ 48. Kf4 Rf2+ 49. Kg3 (49. Kxe4 Rh2 $16) 49... Rf1) 48. Rb3 {[%emt 0:00:09]} Kh7 $2 {[%emt 0:01:20]} (48... b4 49. a4 (49. Rxb4 Rxe3 50. a4 Re1 $16) 49... bxa3) 49. Rxb5 {[%emt 0:00:58] White wants to mate with Rf5.} Rxe3 {[%emt 0:00:04]} 50. Rb7 {[%emt 0:00:19]} Kg8 {[%emt 0:00:23]} 51. Rb8+ {[%emt 0:00:38]} Kg7 {[%emt 0:00:39]} (51... Kh7 $142 52. a4 Re1) 52. Kf4 $2 {[%emt 0:00:21]} (52. Kf5 Rf3+ 53. Kxe4) 52... Ra3 {[%emt 0:00:11]} 53. h6+ {[%emt 0:00:40]} (53. Kxe4 Rxa2 54. h6+ Kh7 $11) 53... Kh7 {[%emt 0:01:29] [#]} 54. Rf8 $1 {[%emt 0:00:11]} (54. Kxe4 Rxa2 55. Rb6 Re2+ 56. Kf3 Re1 $11) 54... Rxa2 $2 {[%emt 0:01:08]} (54... Kg6 $18 55. Rg8+ (55. Kxe4 Ra4+ 56. Kd3 Ra3+ 57. Kc4 Rxa2 $16) 55... Kh7 56. Rg7+ Kh8 57. Kxe4 (57. Rxf7 $2 Rf3+ 58. Kxe4 Rxf7 $19) 57... Ra4+ 58. Kf5 Ra5+ 59. Kg4 Ra4+ 60. Kh5 f6) 55. Rxf7+ {[%emt 0:00:05]} Kg8 {[%emt 0:00:42]} 56. Rb7 {[%emt 0:00:49]} Rg2 {[%emt 0:00:28]} 57. Rb5 {[%emt 0:00:34]} (57. Kxe4 Rxg5 58. Rc7 Rh5 $11 (58... Kh8 59. Rc8+ Kh7 60. Kf3 $11)) 57... Kh7 {[%emt 0:00:27]} 58. Rb7+ {[%emt 0:00:32]} ({Weaker is} 58. Kxe4 Kg6 $16) (58. Rb6 $18 e3 59. Rb7+ (59. Kxe3 Rxg5 60. Kf4 Rh5 $11) 59... Kg8 60. Rg7+ (60. Kxe3 Rxg5 61. Rg7+ Rxg7 $11) 60... Kh8 61. Re7 (61. Kxe3 Re2+ 62. Kf4 Re4+ 63. Kf5 Re5+ 64. Kg4 Re4+ 65. Kf3 Re3+ 66. Kg4 Re4+ 67. Kg3 Re3+ 68. Kg4 Re4+ $11) 61... Rf2+ 62. Kg4 (62. Kxe3 Rg2 $18)) 58... Kg8 {[%emt 0:00:19]} 59. Kf5 {[%emt 0:00:36]} ({Inferior is} 59. Kxe4 Rxg5 60. Kf4 Rh5 $11) 59... Rf2+ {[%emt 0:00:30]} 60. Kxe4 {[%emt 0:00:37]} 1-0

[Event "29th Bosnjaci Open 2025"]
[Site "Bosnjaci"]
[Date "2025.01.06"]
[Round "6.5"]
[White "Besedes, Danilo"]
[Black "Maravic, Ivan"]
[Result "0-1"]
[ECO "B07"]
[WhiteElo "2239"]
[BlackElo "2074"]
[Annotator "TA"]
[PlyCount "104"]
[EventDate "2025.01.04"]
[EventType "swiss"]
[EventCountry "CRO"]
[SourceTitle "playchess.com"]
[Source "ChessBase"]
[SourceQuality "1"]
[TimeControl "5400+30"]

{[%evp 16,104,52,8,16,17,35,25,25,36,59,61,100,108,124,108,117,116,104,91,99,60,93,21,9,0,0,0,31,39,45,40,54,30,85,64,78,58,73,67,109,50,41,56,54,7,8,0,0,0,0,-27,-13,-24,-25,-70,-57,-76,-70,-67,-60,-62,-12,-102,-93,-119,-112,-116,-102,-95,-88,-77,-28,-113,-92,-489,-461,-579,-566,-904,-1118,-1095,-927,-945,-929,-1129,-1123,-1137,-1126,-1094,-1085]} 1. d4 {[%emt 0:00:03]} Nf6 {[%emt 0:00:10]} 2. g3 {[%emt 0:00:07]} g6 {[%emt 0:00:18]} 3. Bg2 {[%emt 0:00:07]} Bg7 {[%emt 0:03:26]} 4. e4 {[%emt 0:00:12]} d6 {[%emt 0:00:25]} 5. Nc3 {[%emt 0:00:15]} O-O {[%emt 0:01:03]} 6. Nge2 {[%emt 0:00:11]} c5 {[%emt 0:08:04]} 7. dxc5 {[%emt 0:01:35]} dxc5 {[%emt 0:01:38]} 8. Qxd8 {[%emt 0:00:06]} Rxd8 {[%emt 0:00:04]} 9. Be3 {[%emt 0:00:06]} Na6 {[%emt 0:13:24][%cal Bb8a6,Ba6b4,Bb4a2][%mdl 32]} 10. h3 {[%emt 0:00:07] Prevents Ng4.} e5 {[%emt 0:06:14]} 11. Nd5 {[%emt 0:12:31]} Nxd5 {[%emt 0:11:04]} 12. exd5 {[%emt 0:00:27]} Nb4 {[%emt 0:02:22]} 13. O-O-O {[%emt 0:00:12]} Bf5 {[%emt 0:02:47]} 14. Rd2 $1 {[%emt 0:00:09]} Nxa2+ {[%emt 0:06:57]} 15. Kb1 {[%emt 0:00:57]} Nb4 {[%emt 0:00:03]} 16. g4 $1 {[%emt 0:00:06]} (16. Bxc5 $2 Nxc2 17. Ka2 (17. Rxc2 $2 Rac8 $19) 17... Bh6 $19) 16... Bd7 {[%emt 0:01:20]} 17. Bxc5 {[%emt 0:00:11]} Bf8 {[%emt 0:02:59]} 18. Bxf8 {[%emt 0:05:48]} Kxf8 {[%emt 0:02:43]} 19. c3 {[%emt 0:00:20]} (19. Re1 $16) 19... Na6 $11 {[%emt 0:00:41]} 20. g5 {[%emt 0:00:08]} Nc5 {[%emt 0:03:47]} 21. Ng3 {[%emt 0:01:00]} Rac8 {[%emt 0:00:32]} 22. Re1 {[%emt 0:02:25]} Re8 {[%emt 0:04:47]} 23. Re3 {[%emt 0:03:41]} Kg7 {[%emt 0:05:27]} 24. Ka2 {[%emt 0:02:38]} b5 {[%emt 0:00:47]} (24... a5 $11) 25. b4 $16 {[%emt 0:16:19]} Na4 {[%emt 0:03:07]} 26. Ne4 {[%emt 0:00:37]} Red8 {[%emt 0:02:01]} 27. Kb3 {[%emt 0:06:45]} Nb6 {[%emt 0:03:53] [#]} 28. Nd6 {[%emt 0:01:12] Prevents Nc4} ({White should try} 28. Bf1 $1 $16) 28... Nc4 $14 {[%emt 0:01:42]} 29. Nxc4 {[%emt 0:00:59]} bxc4+ {[%emt 0:00:07]} 30. Kb2 {[%emt 0:01:18]} (30. Ka3 $14 {should be considered.}) 30... a5 $1 $11 {[%emt 0:03:57]} 31. bxa5 {[%emt 0:00:12][%cal Od5d6] d6! is the strong threat.} Ra8 {[%emt 0:00:11]} 32. Kc1 {[%emt 0:00:07]} Rxa5 {[%emt 0:01:10] ( -> ...Ra1+)} 33. Rb2 {[%emt 0:00:08]} Re8 {[%emt 0:04:26]} 34. Kd2 {[%emt 0:00:39]} Bf5 {[%emt 0:00:16]} 35. d6 {[%emt 0:04:17]} Ra6 {[%emt 0:01:47]} 36. Be4 {[%emt 0:02:18]} Rxd6+ {[%emt 0:00:53]} 37. Ke2 {[%emt 0:00:01]} Be6 {[%emt 0:01:48]} 38. Rb5 {[%emt 0:02:45]} Ra6 {[%emt 0:01:59]} (38... h6 $15 39. h4 (39. gxh6+ Kxh6 40. Rxe5 Bg4+ 41. Bf3 Rxe5 $17) 39... hxg5 40. hxg5 Red8) 39. Rc5 {[%emt 0:01:31]} (39. Bd5 $1 $11) 39... Ra2+ {[%emt 0:00:31]} 40. Kf3 {[%emt 0:00:14]} Rd8 {[%emt 0:00:53] Repels Bd5} 41. Kg3 {[%emt 0:02:52]} Rd1 {[%emt 0:00:25]} 42. Rxe5 {[%emt 0:00:41] [#]} Rg1+ $1 {[%emt 0:00:22]} 43. Bg2 {[%emt 0:00:11]} Rc1 {[%emt 0:00:34] Black is much more active.} (43... Rc2 $17) 44. Rf3 {[%emt 0:03:58]} (44. Bd5 $11 {keeps the balance.}) 44... Rac2 {[%emt 0:00:38]} 45. Ree3 $2 {[%emt 0:00:21][%mdl 8192]} (45. h4 $17 {is more resistant.}) 45... Bd5 $19 {[%emt 0:00:19]} 46. Rf4 {[%emt 0:01:28]} Rg1 {[%emt 0:00:20]} 47. Rfe4 {[%emt 0:00:05]} Bxe4 {[%emt 0:00:26]} 48. Rxe4 {[%emt 0:00:05]} Rxc3+ {[%emt 0:00:19]} 49. Kh2 {[%emt 0:00:01]} Rd1 {[%emt 0:00:29] And now ...Rd2 would win.} 50. Rf4 {[%emt 0:00:46]} Rd7 {[%emt 0:00:08]} 51. Bf1 {[%emt 0:01:19]} Rc7 {[%emt 0:00:11]} 52. Kg2 {[%emt 0:00:06]} Rc1 {[%emt 0:00:17]} 0-1